bitfinex-derivatives/quotes_ETHF0:USTF0_20250621
["timestamp","ask_amount","ask_price","bid_price","bid_amount"]
[1750515163696,0.82581,2421.4,2421.3,1.51615]
[1750515165600,0.82581,2421.4,2421.3,0.6903]
[1750515166600,0.82581,2421.4,2421.3,1.51615]
[1750515167199,0.82581,2421.4,2421.3,0.6903]
[1750515167793,0.82581,2421.4,2421.3,1.51615]
[1750515168408,1.47418,2421.6,2421.5,0.82578]
[1750515168699,0.8258,2421.5,2421.4,0.82579]
[1750515169697,0.6484,2421.6,2421.5,0.82578]
[1750515169698,1.47417,2421.6,2421.5,0.82578]
[1750515169895,0.8258,2421.5,2421.4,0.82579]
[1750515170207,3.2078,2421.8,2421.3,2.0923]
[1750515170398,3.2078,2421.8,2421.6,0.82574]
[1750515170399,0.82574,2421.7,2421.6,0.82574]
[1750515170599,0.6896,2421.9,2421.5,10.0708]
[1750515170797,4.0334,2422.1,2422.0,0.82561]
[1750515171001,0.82556,2422.2,2422.1,0.82558]
[1750515171202,4.6028,2422.4,2421.9,6.863]
[1750515171509,3.2078,2422.4,2422.3,0.82551]
[1750515171805,3.2078,2422.4,2422.2,0.82552]
[1750515172202,3.2078,2422.4,2422.3,0.82551]
[1750515172402,4.0333,2422.4,2422.2,0.82552]
[1750515172600,0.8255,2422.4,2422.3,0.82551]
[1750515173509,0.8255,2422.4,2422.0,1.402]
[1750515173902,0.82554,2422.2,2422.0,1.402]
[1750515174302,0.82554,2422.2,2422.1,6.863]
[1750515175002,0.82554,2422.2,2422.1,7.68858]
[1750515175409,0.82553,2422.3,2422.1,6.862]
[1750515175708,0.82571,2421.7,2421.6,0.82573]
[1750515175900,0.82575,2421.6,2421.5,3.2078]
[1750515176201,0.82581,2421.4,2421.3,0.82584]
[1750515176396,0.82581,2421.4,2421.2,8.35926]
[1750515176810,3.4142,2421.8,2421.4,0.8258]
[1750515176811,1.35,2421.8,2421.4,0.8258]
[1750515177004,0.8258,2421.5,2421.3,0.82583]
[1750515177306,0.8258,2421.5,2421.3,0.82585]
[1750515177708,0.8258,2421.5,2421.4,0.82582]
[1750515177911,0.82582,2421.4,2421.3,0.82583]
[1750515179311,0.82573,2421.7,2421.6,0.82573]
[1750515179808,0.82573,2421.7,2421.6,7.68773]
[1750515180309,0.82573,2421.7,2421.6,6.862]
[1750515180511,0.82573,2421.7,2421.6,7.68775]
[1750515180904,0.82573,2421.7,2421.6,6.862]
[1750515181412,0.82573,2421.7,2421.6,0.82575]
[1750515181607,0.82573,2421.7,2421.6,7.68775]
[1750515181808,0.8257,2421.8,2421.7,0.82571]
[1750515182105,0.82566,2421.9,2421.7,4.03349]
[1750515182308,0.82568,2421.8,2421.7,4.03349]
[1750515182912,0.82571,2421.7,2421.6,7.68772]
[1750515183109,4.157,2422.1,2421.5,1.3078]
[1750515183110,3.2078,2421.9,2421.5,1.3078]
[1750515183406,0.82584,2421.4,2421.2,0.82588]
[1750515183708,0.82585,2421.3,2421.2,0.82588]
[1750515184409,0.82588,2421.2,2421.1,3.9044]
[1750515184605,0.82588,2421.2,2421.1,4.73032]
[1750515186011,0.82587,2421.3,2421.2,0.82588]
[1750515186306,0.82587,2421.3,2421.1,3.9044]
[1750515186307,2.06454,2421.4,2420.8,50.7798]
[1750515186503,0.82599,2420.9,2420.8,50.7798]
[1750515186701,0.82599,2420.9,2420.8,57.6418]
[1750515187111,0.82599,2420.9,2420.8,10.0698]
[1750515187317,0.82599,2420.9,2420.8,3.2078]
[1750515187612,0.82605,2420.7,2420.6,6.863]
[1750515188510,0.82605,2420.7,2420.6,7.68909]
[1750515188912,0.82604,2420.8,2420.6,7.68909]
[1750515189114,2.81237,2421.0,2420.8,0.826]
[1750515189313,0.82599,2420.9,2420.8,0.826]
[1750515189714,0.82602,2420.8,2420.7,4.03383]
[1750515189915,0.82601,2420.9,2420.7,4.03383]
[1750515190108,0.82601,2420.9,2420.8,0.82602]
[1750515190303,2.81236,2421.0,2420.9,0.82599]
[1750515190507,0.82599,2420.9,2420.8,0.826]
[1750515191012,0.82599,2420.9,2420.7,4.03383]
[1750515191217,0.82599,2420.9,2420.8,0.82602]
[1750515192414,0.82602,2420.8,2420.7,4.03383]
[1750515192614,2.81237,2421.0,2420.9,0.82599]
[1750515193315,0.82599,2420.9,2420.8,0.826]
[1750515193916,3.3963,2420.9,2420.6,6.864]
[1750515194114,1.3313,2420.9,2420.6,6.864]
[1750515194310,3.2078,2421.6,2420.8,5.27286]
[1750515194513,1.3271,2421.5,2421.4,0.82581]
[1750515194716,1.3313,2421.8,2421.4,0.8258]
[1750515194916,0.82577,2421.6,2421.5,0.82578]
[1750515195112,0.82571,2421.7,2421.5,0.82575]
[1750515195316,0.82574,2421.7,2421.5,0.82575]
[1750515195824,1.3271,2421.8,2421.4,0.82579]
[1750515195825,0.82578,2421.5,2421.4,0.82579]
[1750515196013,1.3271,2421.8,2421.4,7.67079]
[1750515196213,1.3313,2421.7,2421.4,7.67079]
[1750515196415,0.82577,2421.6,2421.4,7.67079]
[1750515196614,0.82578,2421.5,2421.4,7.67079]
[1750515197020,0.82577,2421.6,2421.4,10.87859]
[1750515197223,0.82577,2421.6,2421.5,0.82578]
[1750515197620,0.82577,2421.6,2421.4,10.87858]
[1750515197822,0.82577,2421.6,2421.5,0.82578]
[1750515199021,0.82573,2421.7,2421.6,0.82575]
[1750515199223,5.27172,2422.2,2421.6,0.82573]
[1750515199423,0.8257,2421.8,2421.6,0.82573]
[1750515199612,0.8257,2421.8,2421.7,0.82571]
[1750515200013,0.8257,2421.8,2421.6,0.82572]
[1750515201524,0.82571,2421.7,2421.6,0.82572]
[1750515201716,0.82571,2421.7,2421.5,2.0305]
[1750515201717,0.82575,2421.6,2421.5,1.3476]
[1750515201916,0.82577,2421.6,2421.5,0.82578]
[1750515202120,0.82578,2421.5,2421.4,4.03359]
[1750515203227,0.82578,2421.5,2421.4,3.2078]
[1750515204631,0.82581,2421.4,2421.3,6.844]
[1750515204825,2.06429,2421.7,2421.2,0.6719]
[1750515204826,0.82585,2421.3,2421.2,7.5159]
[1750515206121,0.82585,2421.3,2421.2,8.34178]
[1750515206323,0.8258,2421.5,2421.4,0.82581]
[1750515206626,0.8258,2421.5,2421.4,4.03359]
[1750515206627,0.82578,2421.5,2421.4,4.03359]
[1750515207231,0.82581,2421.4,2421.3,0.82582]
[1750515207818,0.82585,2421.3,2421.2,8.34177]
[1750515208525,0.82585,2421.3,2421.2,1.49777]
[1750515208831,0.82585,2421.3,2421.2,8.34177]
[1750515210331,0.82584,2421.4,2421.3,0.82584]
[1750515210534,0.82581,2421.5,2421.4,0.8258]
[1750515211531,0.82581,2421.5,2421.4,4.0336]
[1750515211730,0.82581,2421.5,2421.4,0.8258]
[1750515211931,0.6601,2421.6,2421.2,8.9311]
[1750515212437,0.82585,2421.3,2421.2,8.34177]
[1750515213229,0.82583,2421.4,2421.3,0.82583]
[1750515213835,0.82585,2421.3,2421.2,8.34176]
[1750515214228,0.82585,2421.3,2421.2,9.70926]
[1750515215540,0.82584,2421.4,2421.3,0.82583]
[1750515217839,0.6601,2421.6,2421.4,0.82578]
[1750515218137,0.82578,2421.5,2421.4,4.03358]
[1750515218535,0.6884,2422.0,2421.4,5.27229]
[1750515218736,0.82543,2422.6,2422.0,2.06403]
[1750515218946,1.3715,2422.9,2422.5,3.41597466]
[1750515219146,0.82539,2422.7,2422.6,0.8254]
[1750515219444,1.3715,2422.9,2422.8,0.82534]
[1750515219941,2.1968,2422.9,2422.8,0.82534]
[1750515220146,0.6831,2422.9,2422.8,0.82534]
[1750515220441,1.5084,2422.9,2422.8,0.82534]
[1750515221042,1.5084,2422.9,2422.6,0.6896]
[1750515221043,3.2078,2423.0,2422.9,0.8253]
[1750515221235,3.2078,2423.0,2422.6,0.6896]
[1750515221540,3.2078,2423.0,2422.6,2.0564]
[1750515221930,0.8253,2422.9,2422.7,0.82536]
[1750515222143,3.2078,2423.0,2422.8,0.82534]
[1750515222642,3.2078,2423.0,2422.6,2.0564]
[1750515222643,0.82535,2422.8,2422.6,2.88177]
[1750515222842,0.82535,2422.8,2422.7,0.82537]
[1750515223042,0.82532,2422.9,2422.7,0.82537]
[1750515223740,0.82541,2422.6,2422.4,3.2078]
[1750515223946,1.3012,2422.8,2422.4,10.0508]
[1750515224130,0.82535,2422.8,2422.4,10.0508]
[1750515224441,0.82535,2422.8,2422.6,0.82539]
[1750515226142,0.82535,2422.8,2422.7,0.82537]
[1750515226344,0.82535,2422.8,2422.5,1.3668]
[1750515226345,0.82535,2422.8,2422.6,0.82538]
[1750515226539,0.82535,2422.8,2422.7,0.82537]
[1750515226740,0.82537,2422.7,2422.6,0.82538]
[1750515226936,2.06313,2423.1,2422.4,10.87625]
[1750515227244,0.82544,2422.6,2422.5,6.827]
[1750515227751,2.06335,2422.8,2422.2,1.48291]
[1750515227953,0.82564,2421.9,2421.8,0.33458175]
[1750515228161,0.82563,2422.0,2421.8,0.33458175]
[1750515228356,0.6611,2422.2,2421.8,0.33458175]
[1750515228653,0.82558,2422.1,2421.9,0.82564]
[1750515229057,0.82561,2422.0,2421.8,1.52496]
[1750515229359,0.82564,2421.9,2421.8,0.6993]
[1750515229860,0.82568,2421.8,2421.7,3.2078]
[1750515230057,0.82568,2421.8,2421.7,10.0348]
[1750515230359,0.82568,2421.8,2421.7,6.827]
[1750515230858,0.82568,2421.8,2421.7,7.65271]
[1750515233468,0.82566,2421.9,2421.8,0.82567]
[1750515233661,0.82566,2421.9,2421.7,10.86048]
[1750515234262,0.82566,2421.9,2421.8,0.82566]
[1750515234564,0.82566,2421.9,2421.7,10.86049]
[1750515235059,0.82566,2421.9,2421.7,10.86048]
[1750515235455,0.82568,2421.8,2421.7,10.86048]
[1750515236362,0.82568,2421.8,2421.7,10.0348]
[1750515238164,0.82568,2421.8,2421.7,3.2078]
[1750515238362,0.82578,2421.5,2421.4,0.6554]
[1750515238661,0.82578,2421.5,2421.4,7.4824]
[1750515239062,0.82578,2421.5,2421.4,6.827]
[1750515240259,2.93298,2421.5,2421.4,6.827]
[1750515240860,3.2078,2421.7,2421.5,0.82578]
[1750515241066,0.82578,2421.5,2421.4,6.827]
[1750515241360,0.82578,2421.5,2421.1,52.73675349]
[1750515241361,0.82588,2421.2,2421.1,47.562]
[1750515241567,0.82591,2421.1,2421.0,3.2078]
[1750515241858,0.82602,2420.8,2420.7,6.827]
[1750515242266,0.82605,2420.7,2420.6,3.2078]
[1750515244166,5.27242,2421.4,2420.6,3.2078]
[1750515244366,0.82602,2420.8,2420.7,3.2078]
[1750515244863,2.06486,2421.1,2420.4,51.4563]
[1750515244864,0.82612,2420.5,2420.4,51.4563]
[1750515245058,0.6692,2421.0,2420.4,58.2843]
[1750515245259,0.82607,2420.7,2420.5,0.8261]
[1750515245453,0.82608,2420.6,2420.5,1.4005]
[1750515245658,0.82611,2420.5,2420.4,58.2843]
[1750515246367,0.82611,2420.5,2420.4,59.11045]
[1750515247162,0.8261,2420.6,2420.5,0.82611]
[1750515247358,0.82608,2420.6,2420.5,2.20291]
[1750515247564,0.82611,2420.5,2420.4,58.2843]
[1750515248165,0.82611,2420.5,2420.4,59.11045]
[1750515248359,0.82611,2420.5,2420.4,58.2843]
[1750515248561,0.82611,2420.5,2420.4,57.2843]
[1750515248764,0.82611,2420.5,2420.4,58.11045]
[1750515249067,0.6506,2420.8,2420.4,57.2843]
[1750515249272,0.82607,2420.7,2420.5,0.8261]
[1750515249660,0.6506,2420.8,2420.5,0.8261]
[1750515249967,3.2078,2421.4,2420.7,3.2078]
[1750515250171,0.82585,2421.3,2421.2,0.82586]
[1750515250466,0.82584,2421.3,2421.2,7.65587]
[1750515250964,0.82591,2421.1,2421.0,3.2078]
[1750515251166,0.82598,2420.9,2420.8,0.826]
[1750515251360,0.82601,2420.8,2420.7,7.65603]
[1750515251864,0.82599,2420.9,2420.8,0.826]
[1750515252170,0.82596,2421.0,2420.9,0.82597]
[1750515252767,0.82598,2420.9,2420.8,0.82599]
[1750515252965,0.82596,2421.0,2420.9,0.82597]
[1750515253266,0.82593,2421.1,2421.0,0.82593]
[1750515253468,0.82593,2421.1,2421.0,4.03373]
[1750515254069,0.82593,2421.1,2421.0,3.2078]
[1750515254470,0.82598,2421.0,2420.8,2.23699]
[1750515254664,1.9781,2421.3,2420.7,10.86383]
[1750515254866,0.82601,2420.8,2420.7,10.86383]
[1750515255168,0.82604,2420.7,2420.6,7.65607]
[1750515255765,0.82604,2420.7,2420.6,6.83]
[1750515258367,3.8998,2420.8,2420.4,3.2078]
[1750515258568,0.82611,2420.5,2420.4,3.2078]
[1750515259569,0.82611,2420.5,2420.4,4.03395]
[1750515259767,3.8815,2420.9,2420.4,3.2078]
[1750515259973,0.82605,2420.7,2420.6,0.82606]
[1750515260167,0.82605,2420.7,2420.6,7.64406]
[1750515260369,0.82605,2420.7,2420.6,6.818]
[1750515260769,0.82605,2420.7,2420.6,7.64408]
[1750515261373,0.82605,2420.7,2420.6,6.818]
[1750515261566,0.82608,2420.6,2420.5,0.6959]
[1750515262464,5.95406,2421.2,2420.5,0.6959]
[1750515262661,0.82602,2420.8,2420.7,4.03383]
[1750515262872,6.64316,2421.2,2420.7,3.2078]
[1750515262873,5.9565,2421.2,2420.7,3.2078]
[1750515263069,0.82599,2420.9,2420.8,0.7123]
[1750515263268,0.82599,2420.9,2420.8,1.53831]
[1750515264369,0.82608,2420.6,2420.5,1.522]
[1750515264565,0.82608,2420.6,2420.5,0.6959]
[1750515264771,0.82608,2420.6,2420.5,1.52202]
[1750515265465,0.82604,2420.8,2420.7,0.82603]
[1750515265668,0.82607,2420.7,2420.6,0.82607]
[1750515266969,5.896,2421.2,2420.6,3.2078]
[1750515267174,0.82605,2420.7,2420.6,0.82607]
[1750515268969,0.826,2420.9,2420.8,0.82599]
[1750515269676,0.82597,2421.0,2420.9,0.82596]
[1750515270871,4.5784,2421.2,2420.7,2.0651]
[1750515271172,0.82585,2421.3,2420.9,5.27272]
[1750515271477,0.8259,2421.2,2421.1,0.8259]
[1750515271677,0.8259,2421.2,2421.1,1.5066]
[1750515272364,0.8259,2421.2,2421.1,0.6807]
[1750515272572,0.82598,2420.9,2420.8,6.818]
[1750515272872,0.82605,2420.7,2420.6,3.8523]
[1750515273072,0.82605,2420.7,2420.6,3.2078]
[1750515274275,0.82615,2420.4,2420.3,6.818]
[1750515274577,0.82615,2420.4,2420.3,7.64418]
[1750515275176,0.6832,2420.6,2420.3,7.64418]
[1750515275378,0.82615,2420.4,2420.3,7.64418]
[1750515276577,0.82614,2420.5,2420.4,0.82615]
[1750515276781,0.82606,2420.7,2420.6,0.82607]
[1750515277080,0.82608,2420.6,2420.5,4.0339]
[1750515277279,0.82607,2420.7,2420.6,0.82608]
[1750515277578,0.82608,2420.6,2420.5,4.03389]
[1750515278774,0.82608,2420.6,2420.5,10.85289]
[1750515278978,0.82608,2420.6,2420.5,6.819]
[1750515280182,0.82612,2420.5,2420.4,0.82613]
[1750515280384,0.82615,2420.4,2420.3,7.64516]
[1750515280884,0.82618,2420.3,2420.2,3.8523]
[1750515281182,0.82618,2420.3,2420.2,11.49752]
[1750515281879,0.82618,2420.4,2420.3,0.82618]
[1750515282682,0.82618,2420.3,2420.2,11.49749]
[1750515283083,0.82617,2420.4,2420.3,0.82617]
[1750515283582,1.3057,2420.5,2420.4,0.82615]
[1750515284484,2.13182,2420.5,2420.4,0.82615]
[1750515284877,0.82617,2420.4,2420.3,0.82616]
[1750515288087,0.82617,2420.4,2420.3,0.82618]
[1750515288689,2.20837,2420.4,2420.3,0.82618]
[1750515289483,0.82617,2420.4,2420.3,0.82618]
[1750515289875,2.13184,2420.5,2420.4,0.82615]
[1750515290388,3.2078,2420.8,2420.7,0.82605]
[1750515290590,0.826,2420.9,2420.8,0.82601]
[1750515291790,1.3678,2421.2,2420.8,5.17475349]
[1750515291991,1.3678,2421.2,2421.0,0.82594]
[1750515292191,2.19369,2421.2,2421.1,0.82591]
[1750515292382,1.3678,2421.2,2421.1,0.82591]
[1750515292583,3.2078,2421.5,2421.2,0.82585]
[1750515292891,0.82583,2421.4,2421.2,0.82588]
[1750515293187,0.82588,2421.2,2421.1,4.03369]
[1750515293388,0.82588,2421.2,2421.1,3.2078]
[1750515293888,5.27251,2421.2,2420.7,0.82605]
[1750515294089,0.82599,2420.9,2420.8,0.82601]
[1750515294392,0.82599,2420.9,2420.7,0.82603]
[1750515294886,0.82599,2420.9,2420.8,0.82601]
[1750515295087,1.2999,2421.0,2420.9,0.82598]
[1750515295278,2.12585,2421.0,2420.9,0.82598]
[1750515295891,0.82598,2420.9,2420.8,0.82599]
[1750515297691,2.12587,2421.0,2420.9,0.82598]
[1750515299683,1.2999,2421.0,2420.6,8.2188]
[1750515300084,2.06459,2421.4,2420.6,8.2188]
[1750515300290,0.6627,2421.6,2421.1,3.2078]
[1750515300491,0.6545,2422.0,2421.3,2.06461]
[1750515300690,1.3172,2422.0,2421.5,3.2078]
[1750515300887,1.3172,2422.0,2421.8,0.82565]
[1750515301091,3.2078,2422.1,2422.0,0.8256]
[1750515301394,0.82574,2421.6,2421.2,4.5784]
[1750515301585,0.82573,2421.7,2421.5,0.82575]
[1750515301786,5.17475349,2421.7,2421.2,0.6824]
[1750515301987,0.82584,2421.3,2421.2,0.6824]
[1750515302794,0.82588,2421.3,2421.0,6.81]
[1750515302996,0.82588,2421.3,2421.1,0.82589]
[1750515303196,0.82591,2421.1,2421.0,7.63592]
[1750515303398,2.06444,2421.5,2421.0,7.63592]
[1750515303698,0.82588,2421.2,2421.1,0.82588]
[1750515304199,0.82588,2421.2,2421.0,7.63592]
[1750515304596,0.82588,2421.2,2421.1,0.82591]
[1750515305103,0.82588,2421.2,2421.0,7.63592]
[1750515305394,0.82587,2421.3,2421.1,0.82591]
[1750515305598,0.82587,2421.3,2421.1,3.2078]
[1750515305798,0.82587,2421.3,2421.1,5.36838]
[1750515305999,0.82588,2421.2,2421.1,5.36838]
[1750515306199,0.82588,2421.2,2421.0,7.63593]
[1750515306698,0.82595,2421.0,2420.9,1.52785]
[1750515307605,0.82595,2421.0,2420.9,0.7019]
[1750515307803,0.82595,2421.0,2420.9,1.52788]
[1750515308701,0.8259,2421.2,2421.1,0.82591]
[1750515308999,0.82587,2421.3,2421.1,0.82588]
[1750515309302,0.82588,2421.2,2421.1,4.03368]
[1750515309600,0.82587,2421.3,2421.2,0.82587]
[1750515309997,9.5406,2421.6,2421.2,0.82585]
[1750515310201,0.82584,2421.3,2421.2,0.82585]
[1750515310804,0.82584,2421.4,2421.3,0.82583]
[1750515311104,0.82585,2421.3,2421.2,0.82585]
[1750515312106,0.82588,2421.2,2421.1,4.03369]
[1750515312402,0.82587,2421.3,2421.2,0.82587]
[1750515312906,0.82588,2421.2,2421.1,4.03369]
[1750515313708,2.06456,2421.4,2420.9,2.91245]
[1750515314014,0.82593,2421.1,2421.0,0.82594]
[1750515314305,0.82586,2421.3,2421.2,0.82586]
[1750515315208,0.82588,2421.2,2421.1,4.03369]
[1750515315411,0.82593,2421.1,2421.0,0.82593]
[1750515316704,0.8259,2421.2,2421.1,0.82589]
[1750515316900,3.45768,2421.5,2420.9,2.0865]
[1750515317105,0.82593,2421.1,2421.0,0.82593]
[1750515317510,0.82589,2421.2,2421.1,0.82588]
[1750515317709,0.82589,2421.2,2421.1,4.03368]
[1750515318511,0.82589,2421.2,2421.1,0.82588]
[1750515319315,0.82587,2421.3,2421.2,0.82585]
[1750515319611,3.2078,2421.8,2421.2,14.04045349]
[1750515319809,2.06444,2421.5,2420.8,47.592]
[1750515320012,0.82591,2421.2,2421.1,0.8259]
[1750515320312,0.82591,2421.1,2421.0,10.83472]
[1750515320506,0.6831,2421.4,2421.0,10.0088]
[1750515320701,0.6831,2421.4,2421.2,0.82585]
[1750515320907,0.82584,2421.3,2421.2,0.82585]
[1750515321212,0.82591,2421.1,2421.0,10.0088]
[1750515321413,0.82591,2421.1,2421.0,10.83474]
[1750515321710,0.82591,2421.1,2421.0,0.82594]
[1750515322115,0.82594,2421.0,2420.9,0.82596]
[1750515322413,0.82594,2421.0,2420.9,6.801]
[1750515322610,2.0647,2421.2,2420.7,4.03383]
[1750515322818,9.25203349,2421.1,2420.4,10.0088]
[1750515323007,0.82612,2420.5,2420.4,10.83494]
[1750515323610,0.8261,2420.6,2420.5,0.82612]
[1750515324405,0.82608,2420.6,2420.5,0.82612]
[1750515324610,1.3389,2420.9,2420.7,0.82605]
[1750515324802,0.82601,2420.8,2420.7,0.82605]
[1750515325205,0.82601,2420.8,2420.6,0.82606]
[1750515325412,0.82601,2420.8,2420.4,10.0088]
[1750515325717,0.82601,2420.8,2420.6,0.82605]
[1750515326015,0.82605,2420.7,2420.5,0.8261]
[1750515326904,0.82608,2420.6,2420.5,0.8261]
[1750515327109,0.82607,2420.7,2420.6,0.82608]
[1750515327310,0.82599,2420.9,2420.8,0.826]
[1750515327509,0.6736,2421.1,2420.8,0.826]
[1750515327710,0.82605,2420.7,2420.6,0.82607]
[1750515328005,0.82603,2420.8,2420.6,6.802]
[1750515328205,0.82603,2420.8,2420.7,0.82605]
[1750515328416,0.82605,2420.7,2420.6,7.62806]
[1750515328818,0.82605,2420.7,2420.6,6.802]
[1750515329118,0.82605,2420.7,2420.6,7.62808]
[1750515330612,0.82612,2420.5,2420.4,3.2078]
[1750515330817,0.82612,2420.5,2420.4,10.0098]
[1750515333726,0.82622,2420.2,2420.1,50.7908]
[1750515333914,0.82622,2420.2,2420.1,10.0098]
[1750515340123,0.82622,2420.2,2420.1,3.2078]
[1750515342523,2.12452,2420.2,2420.1,3.2078]
[1750515342824,0.82629,2420.0,2419.9,7.4627]
[1750515343212,0.82629,2420.0,2419.9,8.28902]
[1750515343412,0.82627,2420.1,2419.9,7.4627]
[1750515343613,0.82629,2420.0,2419.9,8.28901]
[1750515343826,0.82629,2420.0,2419.9,7.4627]
[1750515344925,0.82629,2420.0,2419.9,0.6597]
[1750515349121,0.82635,2419.8,2419.7,10.83819]
[1750515349325,0.82635,2419.8,2419.7,3.2078]
[1750515349536,0.82635,2419.8,2419.3,0.7043]
[1750515349537,2.0659,2419.8,2419.3,3.9121]
[1750515349721,0.82649,2419.4,2419.3,3.9121]
[1750515350233,0.82649,2419.4,2419.3,4.73863]
[1750515350925,0.82648,2419.5,2419.4,0.82649]
[1750515351131,2.0374,2419.7,2419.3,3.9121]
[1750515351326,0.82641,2419.7,2419.6,0.82642]
[1750515352331,0.82637,2419.8,2419.7,0.82637]
[1750515352831,0.8264,2419.7,2419.6,0.8264]
[1750515353733,0.82637,2419.8,2419.7,0.82638]
[1750515353926,0.82637,2419.8,2419.7,1.3662]
[1750515354432,0.82637,2419.8,2419.7,2.19259]
[1750515354727,0.657,2420.1,2419.7,8.1632]
[1750515354934,0.82633,2419.9,2419.8,2.86685]
[1750515355131,0.82633,2419.9,2419.8,2.0405]
[1750515355431,0.82633,2419.9,2419.8,8.29765]
[1750515355734,0.82633,2419.9,2419.8,6.797]
[1750515355931,0.82639,2419.7,2419.6,4.0342]
[1750515356131,0.82639,2419.7,2419.6,3.2078]
[1750515356331,0.82646,2419.5,2419.4,6.797]
[1750515356534,0.82646,2419.5,2419.4,7.62349]
[1750515357522,1.53443,2419.6,2419.5,0.82646]
[1750515357724,1.9565,2419.8,2419.5,0.82646]
[1750515357931,3.2078,2420.1,2419.3,8.8633]
[1750515358131,2.0658,2420.0,2419.5,0.82643]
[1750515358337,0.82648,2419.5,2419.2,3.2078]
[1750515358533,2.06581,2419.9,2419.2,3.2078]
[1750515358534,0.82649,2419.4,2419.2,3.2078]
[1750515358834,0.82649,2419.4,2419.3,0.82651]
[1750515360032,0.82648,2419.5,2419.4,0.82649]
[1750515360234,0.8265,2419.4,2419.3,0.82651]
[1750515360635,0.82648,2419.5,2419.4,0.82649]
[1750515361731,0.82649,2419.4,2419.3,0.8265]
[1750515361935,0.82649,2419.4,2419.2,12.13513]
[1750515362235,0.82653,2419.3,2419.2,12.13513]
[1750515362427,0.82653,2419.3,2419.2,12.13516]
[1750515362628,0.82653,2419.3,2419.2,10.83136]
[1750515363434,0.82653,2419.3,2419.2,10.0048]
[1750515363639,0.82653,2419.3,2419.2,3.2078]
[1750515365439,0.82653,2419.3,2419.2,4.03436]
[1750515365637,1.3494,2419.7,2419.2,3.2078]
[1750515365940,0.82649,2419.4,2419.2,4.6296]
[1750515366138,0.82653,2419.3,2419.2,4.6296]
[1750515366338,0.82653,2419.3,2419.2,5.45616]
[1750515366737,0.82653,2419.3,2419.2,6.14566]
[1750515367440,0.82651,2419.4,2419.3,0.82652]
[1750515367636,0.82646,2419.5,2419.4,0.82647]
[1750515367833,4.5724,2420.1,2419.4,5.17475349]
[1750515368040,3.8693,2420.1,2419.7,3.2078]
[1750515368236,3.8693,2420.1,2419.8,1.51583]
[1750515368237,3.2078,2420.1,2419.8,1.51583]
[1750515368540,4.03407,2420.1,2419.9,0.82632]
[1750515368740,0.82629,2420.0,2419.8,2.7715]
[1750515368944,4.03406,2420.1,2419.8,2.7715]
[1750515369142,3.2078,2420.1,2420.0,0.82629]
[1750515369343,7.4595,2420.4,2420.0,4.03409]
[1750515369533,0.6615,2420.4,2420.0,3.2078]
[1750515369739,0.82625,2420.1,2420.0,4.03408]
[1750515369943,0.82623,2420.2,2420.1,0.82624]
[1750515370141,0.82621,2420.3,2420.2,0.82621]
[1750515370334,1.48766,2420.4,2420.3,0.82618]
[1750515370539,0.82615,2420.4,2420.3,0.82618]
[1750515371041,0.82615,2420.4,2420.1,8.1468]
[1750515371042,3.2078,2420.6,2420.4,0.82612]
[1750515371244,0.82614,2420.5,2420.1,8.1468]
[1750515371436,0.82615,2420.4,2420.3,0.82617]
[1750515372053,3.2078,2420.6,2420.0,3.2078]
[1750515372254,0.7032,2420.3,2420.0,0.82629]
[1750515372747,0.82622,2420.2,2420.0,0.82629]
[1750515372934,0.82629,2420.0,2419.9,7.62431]
[1750515373142,0.82629,2420.0,2419.9,6.798]
[1750515373538,0.82628,2420.1,2419.9,7.62432]
[1750515374250,0.82628,2420.1,2420.0,3.2078]
[1750515374452,0.7032,2420.3,2420.0,3.2078]
[1750515374648,0.7032,2420.3,2420.1,0.82623]
[1750515374649,1.52941,2420.3,2420.1,0.82623]
[1750515375147,0.82621,2420.3,2420.1,0.82623]
[1750515375342,0.82621,2420.3,2420.1,0.82622]
[1750515375543,0.82622,2420.2,2420.1,0.82622]
[1750515376250,0.82621,2420.3,2420.1,0.82622]
[1750515376451,0.82615,2420.4,2420.0,4.5415]
[1750515376652,0.82615,2420.4,2420.2,0.82622]
[1750515376851,0.82615,2420.4,2420.3,0.82618]
[1750515377046,0.6579,2420.6,2420.3,0.82618]
[1750515377245,0.82618,2420.3,2420.2,0.8262]
[1750515377441,0.82622,2420.2,2420.1,0.82623]
[1750515377745,3.47543,2420.5,2420.0,0.82626]
[1750515377947,0.82624,2420.2,2420.0,0.82626]
[1750515378348,0.82624,2420.2,2420.1,0.82625]
[1750515378547,0.82618,2420.4,2420.2,0.82619]
[1750515378747,0.82616,2420.4,2420.0,3.2078]
[1750515378949,0.82616,2420.4,2420.2,0.8262]
[1750515379150,0.82618,2420.3,2420.2,0.8262]
[1750515379346,0.82622,2420.2,2420.1,2.24493]
[1750515380257,0.82622,2420.2,2420.1,7.61223]
[1750515380449,0.82622,2420.3,2420.1,7.61223]
[1750515380651,0.82622,2420.3,2420.2,0.82622]
[1750515380955,0.82614,2420.5,2420.3,0.82618]
[1750515381156,0.82614,2420.5,2420.3,4.03396]
[1750515381357,0.82615,2420.4,2420.3,4.03396]
[1750515382857,0.82622,2420.2,2420.1,7.61223]
[1750515383460,0.82621,2420.3,2420.2,0.82622]
[1750515384053,0.82618,2420.4,2420.3,0.82618]